[Event "Titled Tuesday Blitz July 11 Early 2023"]
[White "Akylbek2021"]
[Black "Mogirzan, Matei-Valeriu"]
[BlackFideId "1257455"]
[WhiteElo "2507"]
[BlackElo "2601"]
[Result "1-0"]
[Round "6"]
[TimeControl "180+2"]
[Date "2023.07.11"]
[WhiteClock "0:00:43"]
[BlackClock "0:00:12"]
[Board "71"]

1. e4 {[%clk 0:03:00]}  e5 {[%clk 0:02:59]} 2. Nf3 {[%clk 0:03:00]}  Nf6 {[%clk 0:02:59]} 3. Nc3 {[%clk 0:02:57]}  Bc5 {[%clk 0:02:59]} 4. g3 {[%clk 0:02:58]}  Nc6 {[%clk 0:02:57]} 5. Bg2 {[%clk 0:02:57]}  d6 {[%clk 0:02:55]} 6. O-O {[%clk 0:02:58]}  Bg4 {[%clk 0:02:46]} 7. h3 {[%clk 0:02:57]}  Bxf3 {[%clk 0:02:41]} 8. Qxf3 {[%clk 0:02:58]}  Nd4 {[%clk 0:02:40]} 9. Qd1 {[%clk 0:02:59]}  a6 {[%clk 0:02:35]} 10. a3 {[%clk 0:02:52]}  h5 {[%clk 0:02:31]} 11. b4 {[%clk 0:02:44]}  Ba7 {[%clk 0:02:29]} 12. d3 {[%clk 0:02:43]}  Qd7 {[%clk 0:02:13]} 13. Be3 {[%clk 0:02:36]}  c5 {[%clk 0:01:59]} 14. Nb1 {[%clk 0:02:34]}  cxb4 {[%clk 0:01:53]} 15. axb4 {[%clk 0:02:35]}  Nb5 {[%clk 0:01:33]} 16. Nd2 {[%clk 0:02:32]}  h4 {[%clk 0:01:28]} 17. g4 {[%clk 0:02:31]}  Bd4 {[%clk 0:01:15]} 18. Bxd4 {[%clk 0:02:18]}  Nxd4 {[%clk 0:01:13]} 19. f4 {[%clk 0:02:14]}  Qc7 {[%clk 0:01:10]} 20. Nc4 {[%clk 0:02:06]}  b5 {[%clk 0:01:08]} 21. Ne3 {[%clk 0:02:05]}  Qb6 {[%clk 0:00:55]} 22. fxe5 {[%clk 0:02:05]}  dxe5 {[%clk 0:00:50]} 23. Kh1 {[%clk 0:01:48]}  Nb3 {[%clk 0:00:31]} 24. Rxf6 {[%clk 0:01:47]}  Qxe3 {[%clk 0:00:26]} 25. Rf3 {[%clk 0:01:47]}  Qd4 {[%clk 0:00:17]} 26. cxb3 {[%clk 0:01:46]}  f6 {[%clk 0:00:16]} 27. Rc1 {[%clk 0:01:44]}  O-O {[%clk 0:00:10]} 28. Qe1 {[%clk 0:01:38]}  Rac8 {[%clk 0:00:04]} 29. g5 {[%clk 0:01:33]}  fxg5 {[%clk 0:00:03]} 30. Rxc8 {[%clk 0:01:19]}  Rxc8 {[%clk 0:00:04]} 31. Qd2 {[%clk 0:01:18]}  Qa1+ {[%clk 0:00:02]} 32. Rf1 {[%clk 0:01:18]}  Qd4 {[%clk 0:00:02]} 33. Qxg5 {[%clk 0:01:16]}  Qxd3 {[%clk 0:00:01]} 34. Qxe5 {[%clk 0:01:13]}  Rc2 {[%clk 0:00:01]} 35. Qe8+ {[%clk 0:01:05]}  Kh7 {[%clk 0:00:01]} 36. Qh5+ {[%clk 0:01:05]}  Kg8 {[%clk 0:00:02]} 37. Qd5+ {[%clk 0:00:57]}  Qxd5 {[%clk 0:00:01]} 38. exd5 {[%clk 0:00:58]}  Rd2 {[%clk 0:00:02]} 39. Ra1 {[%clk 0:00:54]}  Kf7 {[%clk 0:00:02]} 40. Rxa6 {[%clk 0:00:54]}  Ke7 {[%clk 0:00:02]} 41. Rb6 {[%clk 0:00:50]}  Kd7 {[%clk 0:00:01]} 42. Rb7+ {[%clk 0:00:49]}  Kd6 {[%clk 0:00:02]} 43. Rxg7 {[%clk 0:00:49]}  Ke5 {[%clk 0:00:02]} 44. Rg5+ {[%clk 0:00:49]}  Kd4 {[%clk 0:00:03]} 45. Rg4+ {[%clk 0:00:47]}  Kc3 {[%clk 0:00:04]} 46. Rxh4 {[%clk 0:00:48]}  Kb2 {[%clk 0:00:04]} 47. Rg4 {[%clk 0:00:48]}  Kb1 {[%clk 0:00:05]} 48. h4 {[%clk 0:00:49]}  Ka2 {[%clk 0:00:05]} 49. h5 {[%clk 0:00:49]}  Rd1+ {[%clk 0:00:05]} 50. Kh2 {[%clk 0:00:48]}  Rd2 {[%clk 0:00:05]} 51. h6 {[%clk 0:00:49]}  Re2 {[%clk 0:00:05]} 52. h7 {[%clk 0:00:47]}  Rb2 {[%clk 0:00:06]} 53. h8=Q {[%clk 0:00:47]}  Rxb3 {[%clk 0:00:07]} 54. Qa8+ {[%clk 0:00:45]}  Kb2 {[%clk 0:00:08]} 55. Qc6 {[%clk 0:00:45]}  Ka2 {[%clk 0:00:08]} 56. Qxb5 {[%clk 0:00:45]}  Kb2 {[%clk 0:00:09]} 57. Qc4 {[%clk 0:00:45]}  Ka2 {[%clk 0:00:10]} 58. Rg3 {[%clk 0:00:45]}  Kb2 {[%clk 0:00:10]} 59. Rxb3+ {[%clk 0:00:42]}  Ka1 {[%clk 0:00:11]} 60. Qc1+ {[%clk 0:00:41]}  Ka2 {[%clk 0:00:12]} 61. Qc2+ {[%clk 0:00:42]}  Ka1 {[%clk 0:00:12]} 62. Qb1# {[%clk 0:00:43]} 1-0


[Site "https://www.chess.com"]

[Event "Titled Tuesday Blitz July 11 Early 2023"]
[White "Brunner, Nicolas"]
[Black "Al-Tarboush, Ward"]
[WhiteFideId "620246"]
[BlackFideId "7601450"]
[WhiteElo "2507"]
[BlackElo "2596"]
[Result "0-1"]
[Round "6"]
[TimeControl "180+2"]
[Date "2023.07.11"]
[WhiteClock "0:01:04"]
[BlackClock "0:02:32"]
[Board "72"]

1. Nf3 {[%clk 0:03:00]}  d5 {[%clk 0:02:58]} 2. g3 {[%clk 0:03:01]}  Nf6 {[%clk 0:02:57]} 3. Bg2 {[%clk 0:03:01]}  c6 {[%clk 0:02:57]} 4. c4 {[%clk 0:03:00]}  dxc4 {[%clk 0:02:54]} 5. O-O {[%clk 0:03:00]}  Bf5 {[%clk 0:02:53]} 6. Na3 {[%clk 0:02:46]}  b5 {[%clk 0:02:48]} 7. b3 {[%clk 0:02:35]}  cxb3 {[%clk 0:02:47]} 8. Qxb3 {[%clk 0:02:34]}  e6 {[%clk 0:02:44]} 9. Ne5 {[%clk 0:02:32]}  Be4 {[%clk 0:02:43]} 10. Bxe4 {[%clk 0:02:23]}  Nxe4 {[%clk 0:02:44]} 11. Qf3 {[%clk 0:02:23]}  Ng5 {[%clk 0:02:41]} 12. Qg2 {[%clk 0:01:51]}  Qd5 {[%clk 0:02:39]} 13. d3 {[%clk 0:01:43]}  Qxe5 {[%clk 0:02:36]} 14. Bf4 {[%clk 0:01:25]}  Qd5 {[%clk 0:02:33]} 15. e4 {[%clk 0:01:24]}  Qd7 {[%clk 0:02:32]} 16. Nc2 {[%clk 0:01:04]}  h6 {[%clk 0:02:32]} 0-1


[Site "https://www.chess.com"]

[Event "Titled Tuesday Blitz July 11 Early 2023"]
[White "Piesik, Piotr"]
[Black "Tokhirjonova, Gulrukhbegim"]
[WhiteFideId "1136194"]
[BlackFideId "14203626"]
[WhiteElo "2595"]
[BlackElo "2504"]
[Result "1-0"]
[Round "6"]
[TimeControl "180+2"]
[Date "2023.07.11"]
[WhiteClock "0:02:36"]
[BlackClock "0:01:32"]
[Board "73"]

1. Nf3 {[%clk 0:02:53]}  d5 {[%clk 0:02:49]} 2. g3 {[%clk 0:02:53]}  Nf6 {[%clk 0:02:49]} 3. Bg2 {[%clk 0:02:54]}  g6 {[%clk 0:02:49]} 4. O-O {[%clk 0:02:55]}  Bg7 {[%clk 0:02:50]} 5. d3 {[%clk 0:02:55]}  O-O {[%clk 0:02:50]} 6. Nbd2 {[%clk 0:02:56]}  c5 {[%clk 0:02:51]} 7. e4 {[%clk 0:02:56]}  Nc6 {[%clk 0:02:51]} 8. Re1 {[%clk 0:02:57]}  Re8 {[%clk 0:02:43]} 9. exd5 {[%clk 0:02:55]}  Nxd5 {[%clk 0:02:42]} 10. Nc4 {[%clk 0:02:55]}  e5 {[%clk 0:02:39]} 11. a4 {[%clk 0:02:54]}  b6 {[%clk 0:02:38]} 12. c3 {[%clk 0:02:54]}  Rb8 {[%clk 0:02:32]} 13. Nfd2 {[%clk 0:02:51]}  Bf5 {[%clk 0:02:25]} 14. Ne4 {[%clk 0:02:50]}  Bxe4 {[%clk 0:02:11]} 15. dxe4 {[%clk 0:02:50]}  Nc7 {[%clk 0:02:02]} 16. Qc2 {[%clk 0:02:49]}  Qe7 {[%clk 0:01:59]} 17. Be3 {[%clk 0:02:45]}  Rbd8 {[%clk 0:01:59]} 18. f3 {[%clk 0:02:43]}  Qe6 {[%clk 0:01:53]} 19. Bf1 {[%clk 0:02:43]}  Rd7 {[%clk 0:01:48]} 20. Rad1 {[%clk 0:02:43]}  Red8 {[%clk 0:01:47]} 21. Na3 {[%clk 0:02:41]}  f5 {[%clk 0:01:41]} 22. Bc4 {[%clk 0:02:37]}  Kf7 {[%clk 0:01:33]} 23. Bxe6+ {[%clk 0:02:37]}  Nxe6 {[%clk 0:01:32]} 24. exf5 {[%clk 0:02:36]} 1-0


[Site "https://www.chess.com"]

[Event "Titled Tuesday Blitz July 11 Early 2023"]
[White "Gontcharov, Vladislav"]
[Black "Rakitic2010"]
[WhiteFideId "4123492"]
[WhiteElo "2586"]
[BlackElo "2422"]
[Result "0-1"]
[Round "6"]
[TimeControl "180+2"]
[Date "2023.07.11"]
[WhiteClock "0:00:07"]
[BlackClock "0:00:05"]
[Board "81"]

1. d4 {[%clk 0:03:00]}  Nf6 {[%clk 0:03:00]} 2. c4 {[%clk 0:03:00]}  e6 {[%clk 0:03:00]} 3. Nc3 {[%clk 0:02:59]}  Bb4 {[%clk 0:03:01]} 4. e3 {[%clk 0:02:59]}  O-O {[%clk 0:02:59]} 5. Ne2 {[%clk 0:02:55]}  c5 {[%clk 0:02:57]} 6. a3 {[%clk 0:02:54]}  cxd4 {[%clk 0:02:54]} 7. axb4 {[%clk 0:02:54]}  dxc3 {[%clk 0:02:55]} 8. bxc3 {[%clk 0:02:51]}  b6 {[%clk 0:02:53]} 9. Ng3 {[%clk 0:02:40]}  Bb7 {[%clk 0:02:53]} 10. f3 {[%clk 0:02:39]}  d5 {[%clk 0:02:52]} 11. cxd5 {[%clk 0:02:34]}  Nxd5 {[%clk 0:02:51]} 12. Bd2 {[%clk 0:02:10]}  Qf6 {[%clk 0:02:47]} 13. Rc1 {[%clk 0:02:00]}  Nc6 {[%clk 0:02:44]} 14. Kf2 {[%clk 0:01:48]}  Rfd8 {[%clk 0:02:42]} 15. Qe1 {[%clk 0:01:45]}  Ne5 {[%clk 0:02:40]} 16. c4 {[%clk 0:01:18]}  Ne7 {[%clk 0:02:07]} 17. Bc3 {[%clk 0:01:11]}  Nf5 {[%clk 0:01:58]} 18. Kg1 {[%clk 0:00:50]}  Nxg3 {[%clk 0:01:35]} 19. Qxg3 {[%clk 0:00:49]}  Nxf3+ {[%clk 0:00:39]} 20. gxf3 {[%clk 0:00:48]}  Qh6 {[%clk 0:00:40]} 21. Kf2 {[%clk 0:00:44]}  Rac8 {[%clk 0:00:35]} 22. Rg1 {[%clk 0:00:42]}  f6 {[%clk 0:00:35]} 23. Be2 {[%clk 0:00:36]}  a5 {[%clk 0:00:30]} 24. bxa5 {[%clk 0:00:32]}  bxa5 {[%clk 0:00:30]} 25. Bxa5 {[%clk 0:00:32]}  Rd7 {[%clk 0:00:29]} 26. Rgd1 {[%clk 0:00:30]}  Rf7 {[%clk 0:00:23]} 27. c5 {[%clk 0:00:28]}  f5 {[%clk 0:00:23]} 28. c6 {[%clk 0:00:20]}  f4 {[%clk 0:00:20]} 29. exf4 {[%clk 0:00:19]}  Bxc6 {[%clk 0:00:20]} 30. Rd6 {[%clk 0:00:18]}  Bb7 {[%clk 0:00:16]} 31. h4 {[%clk 0:00:16]}  Rff8 {[%clk 0:00:13]} 32. Qg5 {[%clk 0:00:15]}  Qxg5 {[%clk 0:00:08]} 33. fxg5 {[%clk 0:00:15]}  Rxc1 {[%clk 0:00:09]} 34. Rxe6 {[%clk 0:00:11]}  Rc2 {[%clk 0:00:09]} 35. Re3 {[%clk 0:00:10]}  Ba6 {[%clk 0:00:08]} 36. Bb4 {[%clk 0:00:11]}  Rb8 {[%clk 0:00:06]} 37. Bd6 {[%clk 0:00:10]}  Rbb2 {[%clk 0:00:06]} 38. Re8+ {[%clk 0:00:08]}  Kf7 {[%clk 0:00:06]} 39. Re7+ {[%clk 0:00:08]}  Kg6 {[%clk 0:00:06]} 40. Re6+ {[%clk 0:00:08]}  Kh5 {[%clk 0:00:06]} 41. Kg3 {[%clk 0:00:06]}  Rxe2 {[%clk 0:00:06]} 42. Be5 {[%clk 0:00:07]}  Rg2+ {[%clk 0:00:06]} 43. Kf4 {[%clk 0:00:07]}  Rb4+ {[%clk 0:00:04]} 44. Ke3 {[%clk 0:00:07]}  Re2# {[%clk 0:00:05]} 0-1


[Site "https://www.chess.com"]

[Event "Titled Tuesday Blitz July 11 Early 2023"]
[White "chess123456s"]
[Black "Jegorovas, Aleksandras"]
[BlackFideId "12801950"]
[WhiteElo "2582"]
[BlackElo "2379"]
[Result "0-1"]
[Round "6"]
[TimeControl "180+2"]
[Date "2023.07.11"]
[WhiteClock "0:00:06"]
[BlackClock "0:01:57"]
[Board "84"]

1. d4 {[%clk 0:03:00]}  Nf6 {[%clk 0:02:57]} 2. Nc3 {[%clk 0:03:00]}  e6 {[%clk 0:02:57]} 3. e4 {[%clk 0:02:58]}  d5 {[%clk 0:02:58]} 4. e5 {[%clk 0:02:59]}  Nfd7 {[%clk 0:02:57]} 5. f4 {[%clk 0:02:59]}  c5 {[%clk 0:02:57]} 6. Nf3 {[%clk 0:02:59]}  Nc6 {[%clk 0:02:58]} 7. Be3 {[%clk 0:03:00]}  Rb8 {[%clk 0:02:58]} 8. Qd2 {[%clk 0:02:49]}  Qa5 {[%clk 0:02:58]} 9. Be2 {[%clk 0:02:39]}  b5 {[%clk 0:02:57]} 10. O-O {[%clk 0:02:37]}  b4 {[%clk 0:02:57]} 11. Nd1 {[%clk 0:02:36]}  cxd4 {[%clk 0:02:57]} 12. Nxd4 {[%clk 0:02:36]}  Nxd4 {[%clk 0:02:57]} 13. Bxd4 {[%clk 0:02:36]}  Bc5 {[%clk 0:02:58]} 14. Ne3 {[%clk 0:02:32]}  Qb6 {[%clk 0:02:57]} 15. Bxc5 {[%clk 0:02:28]}  Nxc5 {[%clk 0:02:57]} 16. Qd4 {[%clk 0:02:21]}  O-O {[%clk 0:02:56]} 17. Kh1 {[%clk 0:02:11]}  Ne4 {[%clk 0:02:52]} 18. Qd3 {[%clk 0:02:02]}  Ba6 {[%clk 0:02:42]} 19. Qxa6 {[%clk 0:01:55]}  Qxe3 {[%clk 0:02:40]} 20. Rf3 {[%clk 0:01:31]}  Qc5 {[%clk 0:02:32]} 21. Qd3 {[%clk 0:00:54]}  Nf2+ {[%clk 0:02:29]} 22. Rxf2 {[%clk 0:00:54]}  Qxf2 {[%clk 0:02:29]} 23. Rf1 {[%clk 0:00:55]}  Qc5 {[%clk 0:02:29]} 24. Qh3 {[%clk 0:00:54]}  h6 {[%clk 0:02:23]} 25. Bd3 {[%clk 0:00:54]}  Qd4 {[%clk 0:02:20]} 26. Re1 {[%clk 0:00:47]}  Qxb2 {[%clk 0:02:19]} 27. f5 {[%clk 0:00:45]}  exf5 {[%clk 0:02:19]} 28. Qxf5 {[%clk 0:00:42]}  g6 {[%clk 0:02:20]} 29. Qf4 {[%clk 0:00:42]}  Rbe8 {[%clk 0:02:16]} 30. h4 {[%clk 0:00:38]}  Qc3 {[%clk 0:02:13]} 31. Re2 {[%clk 0:00:36]}  h5 {[%clk 0:02:08]} 32. Qg5 {[%clk 0:00:17]}  Re6 {[%clk 0:02:07]} 33. g4 {[%clk 0:00:16]}  Rfe8 {[%clk 0:02:04]} 34. gxh5 {[%clk 0:00:14]}  Rxe5 {[%clk 0:02:04]} 35. Rxe5 {[%clk 0:00:14]}  Qxe5 {[%clk 0:02:04]} 36. Qxe5 {[%clk 0:00:12]}  Rxe5 {[%clk 0:02:03]} 37. hxg6 {[%clk 0:00:13]}  fxg6 {[%clk 0:02:03]} 38. Bxg6 {[%clk 0:00:14]}  Re3 {[%clk 0:02:00]} 39. Bf5 {[%clk 0:00:12]}  Kf7 {[%clk 0:01:58]} 40. Bd3 {[%clk 0:00:11]}  a5 {[%clk 0:01:57]} 41. Kg2 {[%clk 0:00:11]}  a4 {[%clk 0:01:57]} 42. Kf2 {[%clk 0:00:08]}  Rxd3 {[%clk 0:01:57]} 43. cxd3 {[%clk 0:00:08]}  b3 {[%clk 0:01:57]} 44. a3 {[%clk 0:00:06]}  b2 {[%clk 0:01:57]} 0-1


[Site "https://www.chess.com"]

[Event "Titled Tuesday Blitz July 11 Early 2023"]
[White "Rodriguez Santiago, Jaime"]
[Black "Tologon tegin, Semetei"]
[WhiteFideId "3100898"]
[BlackFideId "13800574"]
[WhiteElo "2371"]
[BlackElo "2581"]
[Result "0-1"]
[Round "6"]
[TimeControl "180+2"]
[Date "2023.07.11"]
[WhiteClock "0:00:21"]
[BlackClock "0:01:07"]
[Board "85"]

1. c4 {[%clk 0:03:00]}  g6 {[%clk 0:02:58]} 2. Nc3 {[%clk 0:03:00]}  Bg7 {[%clk 0:02:56]} 3. g3 {[%clk 0:03:00]}  c5 {[%clk 0:02:55]} 4. Bg2 {[%clk 0:03:01]}  e5 {[%clk 0:02:54]} 5. e4 {[%clk 0:03:00]}  Ne7 {[%clk 0:02:53]} 6. Nge2 {[%clk 0:03:00]}  Nbc6 {[%clk 0:02:53]} 7. d3 {[%clk 0:03:01]}  d6 {[%clk 0:02:51]} 8. Be3 {[%clk 0:03:00]}  h6 {[%clk 0:02:51]} 9. O-O {[%clk 0:02:58]}  O-O {[%clk 0:02:50]} 10. Rb1 {[%clk 0:02:56]}  Be6 {[%clk 0:02:46]} 11. a3 {[%clk 0:02:56]}  a5 {[%clk 0:02:45]} 12. Nd5 {[%clk 0:02:52]}  Nd4 {[%clk 0:02:42]} 13. Nxd4 {[%clk 0:02:49]}  cxd4 {[%clk 0:02:40]} 14. Bd2 {[%clk 0:02:50]}  Nxd5 {[%clk 0:02:39]} 15. cxd5 {[%clk 0:02:45]}  Bd7 {[%clk 0:02:39]} 16. b4 {[%clk 0:02:43]}  a4 {[%clk 0:02:33]} 17. b5 {[%clk 0:02:36]}  Qb6 {[%clk 0:02:29]} 18. Rb4 {[%clk 0:02:29]}  Rfc8 {[%clk 0:02:22]} 19. Qb1 {[%clk 0:02:14]}  Rc5 {[%clk 0:02:20]} 20. Qb2 {[%clk 0:02:05]}  Rxb5 {[%clk 0:02:20]} 21. Rxb5 {[%clk 0:02:05]}  Qxb5 {[%clk 0:02:20]} 22. Qxb5 {[%clk 0:02:00]}  Bxb5 {[%clk 0:02:21]} 23. Rd1 {[%clk 0:01:59]}  Bxd3 {[%clk 0:02:19]} 24. Bb4 {[%clk 0:01:57]}  Bc2 {[%clk 0:01:38]} 25. Rd2 {[%clk 0:01:52]}  Bb3 {[%clk 0:01:32]} 26. Bxd6 {[%clk 0:01:51]}  f6 {[%clk 0:01:33]} 27. f4 {[%clk 0:01:48]}  Rc8 {[%clk 0:01:28]} 28. Bh3 {[%clk 0:01:39]}  Rc1+ {[%clk 0:01:27]} 29. Kf2 {[%clk 0:01:39]}  Kf7 {[%clk 0:01:19]} 30. Be6+ {[%clk 0:01:38]}  Ke8 {[%clk 0:01:19]} 31. Bb4 {[%clk 0:01:25]}  Bf8 {[%clk 0:01:09]} 32. fxe5 {[%clk 0:01:12]}  fxe5 {[%clk 0:01:08]} 33. Bxf8 {[%clk 0:01:09]}  Kxf8 {[%clk 0:01:08]} 34. Kg2 {[%clk 0:00:57]}  Ke7 {[%clk 0:01:08]} 35. Rf2 {[%clk 0:00:53]}  Rc2 {[%clk 0:01:08]} 36. Rxc2 {[%clk 0:00:43]}  Bxc2 {[%clk 0:01:09]} 37. Kf3 {[%clk 0:00:44]}  b5 {[%clk 0:01:09]} 38. Bc8 {[%clk 0:00:21]}  b4 {[%clk 0:01:07]} 0-1


[Site "https://www.chess.com"]

[Event "Titled Tuesday Blitz July 11 Early 2023"]
[White "Pham, Le Thao Nguyen"]
[Black "Dimitrov, Atanas"]
[WhiteFideId "12401226"]
[BlackFideId "2901315"]
[WhiteElo "2526"]
[BlackElo "2689"]
[Result "1-0"]
[Round "6"]
[TimeControl "180+2"]
[Date "2023.07.11"]
[WhiteClock "0:00:09"]
[BlackClock "0:00:08"]
[Board "91"]

1. d4 {[%clk 0:02:56]}  Nf6 {[%clk 0:02:58]} 2. c4 {[%clk 0:02:55]}  g6 {[%clk 0:02:58]} 3. Nc3 {[%clk 0:02:51]}  d5 {[%clk 0:02:59]} 4. Bf4 {[%clk 0:02:41]}  Bg7 {[%clk 0:02:58]} 5. e3 {[%clk 0:02:39]}  O-O {[%clk 0:02:57]} 6. c5 {[%clk 0:02:30]}  a5 {[%clk 0:02:41]} 7. h3 {[%clk 0:02:24]}  b6 {[%clk 0:02:35]} 8. cxb6 {[%clk 0:02:02]}  cxb6 {[%clk 0:02:36]} 9. Bb5 {[%clk 0:01:58]}  Ba6 {[%clk 0:02:32]} 10. Nge2 {[%clk 0:01:58]}  Bxb5 {[%clk 0:02:26]} 11. Nxb5 {[%clk 0:01:59]}  Na6 {[%clk 0:02:26]} 12. O-O {[%clk 0:01:58]}  Qd7 {[%clk 0:02:24]} 13. Nec3 {[%clk 0:01:22]}  Rfc8 {[%clk 0:02:22]} 14. Qe2 {[%clk 0:01:20]}  Ne4 {[%clk 0:02:16]} 15. Rfc1 {[%clk 0:01:11]}  Nb4 {[%clk 0:02:07]} 16. a3 {[%clk 0:01:03]}  Nc6 {[%clk 0:02:04]} 17. Nxe4 {[%clk 0:00:35]}  dxe4 {[%clk 0:02:01]} 18. Nc3 {[%clk 0:00:35]}  f5 {[%clk 0:01:32]} 19. Qb5 {[%clk 0:00:34]}  h6 {[%clk 0:00:43]} 20. Nd5 {[%clk 0:00:19]}  Qb7 {[%clk 0:00:27]} 21. Rxc6 {[%clk 0:00:17]}  Rxc6 {[%clk 0:00:22]} 22. Qxc6 {[%clk 0:00:17]}  Qxc6 {[%clk 0:00:22]} 23. Nxe7+ {[%clk 0:00:17]}  Kf7 {[%clk 0:00:23]} 24. Nxc6 {[%clk 0:00:18]}  Rc8 {[%clk 0:00:24]} 25. Rc1 {[%clk 0:00:14]}  Ke6 {[%clk 0:00:24]} 26. Rc2 {[%clk 0:00:12]}  g5 {[%clk 0:00:19]} 27. Bg3 {[%clk 0:00:10]}  h5 {[%clk 0:00:17]} 28. h4 {[%clk 0:00:10]}  gxh4 {[%clk 0:00:16]} 29. Bf4 {[%clk 0:00:10]}  Bf6 {[%clk 0:00:15]} 30. b4 {[%clk 0:00:10]}  axb4 {[%clk 0:00:15]} 31. axb4 {[%clk 0:00:11]}  b5 {[%clk 0:00:15]} 32. d5+ {[%clk 0:00:09]}  Kf7 {[%clk 0:00:14]} 33. Ra2 {[%clk 0:00:08]}  Rg8 {[%clk 0:00:10]} 34. Ra7+ {[%clk 0:00:08]}  Kg6 {[%clk 0:00:11]} 35. Kh2 {[%clk 0:00:08]}  Rc8 {[%clk 0:00:09]} 36. Ne7+ {[%clk 0:00:08]}  Bxe7 {[%clk 0:00:10]} 37. Rxe7 {[%clk 0:00:08]}  Kf6 {[%clk 0:00:10]} 38. d6 {[%clk 0:00:08]}  Rc2 {[%clk 0:00:11]} 39. Be5+ {[%clk 0:00:08]}  Kg6 {[%clk 0:00:11]} 40. d7 {[%clk 0:00:09]}  Rd2 {[%clk 0:00:08]} 41. Bc7 {[%clk 0:00:09]} 1-0


[Site "https://www.chess.com"]

[Event "Titled Tuesday Blitz July 11 Early 2023"]
[White "feuervogel1000000"]
[Black "Tregubov, Pavel V."]
[BlackFideId "4115341"]
[WhiteElo "2520"]
[BlackElo "2668"]
[Result "0-1"]
[Round "6"]
[TimeControl "180+2"]
[Date "2023.07.11"]
[WhiteClock "0:00:05"]
[BlackClock "0:00:07"]
[Board "92"]

1. e4 {[%clk 0:03:00]}  c5 {[%clk 0:02:58]} 2. Nf3 {[%clk 0:03:00]}  e6 {[%clk 0:02:59]} 3. d4 {[%clk 0:02:59]}  cxd4 {[%clk 0:02:59]} 4. Nxd4 {[%clk 0:03:00]}  Nf6 {[%clk 0:03:00]} 5. Nc3 {[%clk 0:02:59]}  Nc6 {[%clk 0:03:00]} 6. Nxc6 {[%clk 0:02:55]}  bxc6 {[%clk 0:03:00]} 7. e5 {[%clk 0:02:56]}  Nd5 {[%clk 0:03:00]} 8. Ne4 {[%clk 0:02:57]}  Bb7 {[%clk 0:03:00]} 9. c4 {[%clk 0:02:56]}  Nb4 {[%clk 0:03:00]} 10. a3 {[%clk 0:02:47]}  c5 {[%clk 0:02:59]} 11. Nc3 {[%clk 0:02:40]}  Nc6 {[%clk 0:02:57]} 12. Bf4 {[%clk 0:02:34]}  g5 {[%clk 0:02:46]} 13. Bg3 {[%clk 0:02:33]}  Bg7 {[%clk 0:02:46]} 14. Ne4 {[%clk 0:02:20]}  O-O {[%clk 0:02:36]} 15. Nxc5 {[%clk 0:02:15]}  Qb6 {[%clk 0:02:25]} 16. b4 {[%clk 0:01:45]}  Nxe5 {[%clk 0:02:23]} 17. Be2 {[%clk 0:01:30]}  Bxg2 {[%clk 0:02:08]} 18. Rg1 {[%clk 0:01:28]}  Qc6 {[%clk 0:01:36]} 19. Bxe5 {[%clk 0:00:59]}  Bxe5 {[%clk 0:01:35]} 20. Rc1 {[%clk 0:01:00]}  d6 {[%clk 0:01:20]} 21. Nd7 {[%clk 0:00:57]}  Bxh2 {[%clk 0:01:15]} 22. Qd4 {[%clk 0:00:33]}  Bxg1 {[%clk 0:00:59]} 23. Nf6+ {[%clk 0:00:33]}  Kh8 {[%clk 0:00:59]} 24. Qd3 {[%clk 0:00:26]}  Kg7 {[%clk 0:00:41]} 25. Nh5+ {[%clk 0:00:21]}  Kh6 {[%clk 0:00:40]} 26. Nf6 {[%clk 0:00:20]}  Rh8 {[%clk 0:00:35]} 27. c5 {[%clk 0:00:16]}  Rad8 {[%clk 0:00:29]} 28. Qg3 {[%clk 0:00:16]}  Kg6 {[%clk 0:00:26]} 29. b5 {[%clk 0:00:14]}  Qa8 {[%clk 0:00:21]} 30. Qc3 {[%clk 0:00:10]}  Bh2 {[%clk 0:00:18]} 31. c6 {[%clk 0:00:10]}  Be5 {[%clk 0:00:18]} 32. Qc2+ {[%clk 0:00:09]}  Kxf6 {[%clk 0:00:18]} 33. a4 {[%clk 0:00:07]}  Qb8 {[%clk 0:00:16]} 34. Qd2 {[%clk 0:00:06]}  Qb6 {[%clk 0:00:15]} 35. Rc4 {[%clk 0:00:07]}  d5 {[%clk 0:00:13]} 36. Rg4 {[%clk 0:00:07]}  h6 {[%clk 0:00:11]} 37. Rxg2 {[%clk 0:00:07]}  Qd4 {[%clk 0:00:10]} 38. Qxd4 {[%clk 0:00:05]}  Bxd4 {[%clk 0:00:10]} 39. a5 {[%clk 0:00:06]}  Bc3+ {[%clk 0:00:10]} 40. Kd1 {[%clk 0:00:06]}  Bxa5 {[%clk 0:00:11]} 41. Rg4 {[%clk 0:00:06]}  Rb8 {[%clk 0:00:10]} 42. Ra4 {[%clk 0:00:07]}  Bb6 {[%clk 0:00:10]} 43. f3 {[%clk 0:00:08]}  Rhc8 {[%clk 0:00:10]} 44. Kc2 {[%clk 0:00:08]}  Rc7 {[%clk 0:00:09]} 45. Kd3 {[%clk 0:00:08]}  h5 {[%clk 0:00:09]} 46. Bf1 {[%clk 0:00:07]}  h4 {[%clk 0:00:10]} 47. Bh3 {[%clk 0:00:08]}  Bc5 {[%clk 0:00:09]} 48. Ra5 {[%clk 0:00:08]}  Bb4 {[%clk 0:00:09]} 49. Ra4 {[%clk 0:00:06]}  Rxb5 {[%clk 0:00:10]} 50. Ke3 {[%clk 0:00:06]}  Rxc6 {[%clk 0:00:09]} 51. Ke2 {[%clk 0:00:07]}  Rc3 {[%clk 0:00:09]} 52. f4 {[%clk 0:00:05]}  Rxh3 {[%clk 0:00:07]} 0-1


[Site "https://www.chess.com"]